bitfinex-derivatives/quotes_BTCF0:USTF0_20241125
["timestamp","ask_amount","ask_price","bid_price","bid_amount"]
[1732549028982,0.26696,95866.0,95853.0,0.00085811]
[1732549029178,0.3608,95858.0,95853.0,0.05301311]
[1732549029453,0.3608,95858.0,95857.0,0.052153]
[1732549029783,0.3608,95858.0,95853.0,0.00985811]
[1732549030082,0.3608,95858.0,95857.0,0.052153]
[1732549030389,0.3608,95858.0,95853.0,0.00985811]
[1732549030601,0.052154,95854.0,95853.0,0.00985811]
[1732549030992,0.052154,95854.0,95853.0,0.01885811]
[1732549031693,0.053154,95854.0,95853.0,0.01885811]
[1732549032083,0.26792,95854.0,95853.0,0.01885811]
[1732549032284,0.001,95854.0,95853.0,0.01885811]
[1732549032492,0.26792,95854.0,95853.0,0.01885811]
[1732549033187,0.62872,95854.0,95853.0,0.01885811]
[1732549033387,0.62872,95854.0,95853.0,0.00985811]
[1732549033585,0.3618,95854.0,95853.0,0.01885811]
[1732549033786,0.001,95854.0,95853.0,0.07101311]
[1732549034001,0.001,95854.0,95853.0,0.01885811]
[1732549034588,0.31396,95854.0,95853.0,0.01885811]
[1732549034996,0.69114348,95854.0,95806.0,0.53095888]
[1732549035185,0.3608,95836.0,95822.0,0.052172]
[1732549035385,0.24216695,95840.0,95818.0,0.31227645]
[1732549035386,0.052168,95830.0,95818.0,0.31227645]
[1732549035588,0.24216695,95840.0,95826.0,0.3608]
[1732549035786,0.052165,95836.0,95826.0,0.3608]
[1732549036323,0.00010573,95835.0,95826.0,0.3608]
[1732549036687,0.00010573,95835.0,95834.0,0.3608]
[1732549037190,0.00010573,95835.0,95834.0,0.67384]
[1732549037388,0.00010573,95835.0,95834.0,0.3608]
[1732549037590,0.00110573,95835.0,95834.0,0.3608]
[1732549037799,0.00110573,95835.0,95826.0,0.009]
[1732549037800,0.052167,95832.0,95826.0,0.009]
[1732549037996,0.00110573,95835.0,95830.0,0.052167]
[1732549038188,0.052169,95828.0,95826.0,0.009]
[1732549038587,0.00210573,95835.0,95834.0,0.009]
[1732549038792,0.05427073,95835.0,95834.0,0.009]
[1732549039410,0.80583073,95835.0,95834.0,0.009]
[1732549039712,1.10583073,95835.0,95834.0,0.00800084]
[1732549040002,0.80583073,95835.0,95834.0,0.00800084]
[1732549040590,0.052167,95831.0,95830.0,0.009]
[1732549040808,0.31304,95834.0,95799.0,0.412984]
[1732549040993,0.49239074,95835.0,95799.0,0.00116]
[1732549040994,0.3608,95808.0,95799.0,0.00116]
[1732549041348,0.052183,95802.0,95799.0,0.00116]
[1732549041501,0.052183,95802.0,95778.0,0.3608]
[1732549041689,0.31316,95801.0,95778.0,0.3608]
[1732549043070,0.31316,95801.0,95773.0,0.01622118]
[1732549043189,0.052183,95802.0,95784.0,0.3608]
[1732549043493,0.052183,95802.0,95775.0,0.3608]
[1732549043494,0.573,95801.0,95773.0,0.3608]
[1732549043890,0.573,95801.0,95800.0,0.00113318]
[1732549043891,0.006,95801.0,95800.0,0.00113318]
[1732549044094,0.57909926,95801.0,95800.0,0.00113318]
[1732549044504,0.02698887,95801.0,95800.0,0.00113318]
[1732549044709,0.28686887,95801.0,95800.0,0.00113318]
[1732549044998,0.29586887,95801.0,95800.0,0.00213318]
[1732549045316,0.01509926,95801.0,95800.0,0.00213318]
[1732549045606,0.26497926,95801.0,95800.0,0.00213318]
[1732549045797,0.25988,95801.0,95800.0,0.00013318]
[1732549046120,0.27488,95801.0,95800.0,0.00213318]
[1732549046698,0.26688,95801.0,95800.0,0.01013318]
[1732549047502,0.26188,95801.0,95800.0,0.01813318]
[1732549048195,0.26088,95801.0,95800.0,0.00913318]
[1732549048386,0.26188,95801.0,95800.0,0.01813318]
[1732549049195,0.26088,95801.0,95800.0,0.00913318]
[1732549049398,0.26188,95801.0,95800.0,0.01513318]
[1732549049787,0.26088,95801.0,95800.0,0.00913318]
[1732549049995,0.26988,95801.0,95800.0,0.01013318]
[1732549050199,0.26988,95801.0,95800.0,0.00113318]
[1732549050200,0.28486056,95801.0,95800.0,0.00113318]
[1732549050396,0.28586056,95801.0,95800.0,0.01013318]
[1732549051097,0.60402056,95801.0,95800.0,0.00113318]
[1732549051599,0.27488,95801.0,95800.0,5.00113318]
[1732549051791,0.27288,95801.0,95800.0,5.00113318]
[1732549052004,0.27188,95801.0,95800.0,5.00113318]
[1732549052500,0.58504,95801.0,95800.0,4.68593123]
[1732549052694,0.57704,95801.0,95800.0,4.68493123]
[1732549053339,0.58504,95801.0,95800.0,4.68593123]
[1732549053533,0.58504,95801.0,95800.0,4.68493123]
[1732549053534,0.31729414,95801.0,95800.0,4.68493123]
[1732549053696,0.27205414,95801.0,95800.0,4.68593123]
[1732549054005,0.58521414,95801.0,95800.0,4.68593123]
[1732549054202,0.27405414,95801.0,95800.0,4.68593123]
[1732549054610,0.58721414,95801.0,95800.0,4.68593123]
[1732549054903,0.58108,95801.0,95800.0,4.00358559]
[1732549055095,0.58108,95801.0,95800.0,3.56528559]
[1732549055096,0.58708,95801.0,95800.0,3.56528559]
[1732549055299,0.58708,95801.0,95800.0,2.62190622]
[1732549055300,0.88708,95801.0,95800.0,2.62190622]
[1732549055502,0.88708,95801.0,95800.0,2.35700522]
[1732549055800,0.88716768,95801.0,95800.0,1.80616542]
[1732549056014,0.88708,95801.0,95800.0,1.80616542]
[1732549056206,0.88708,95801.0,95800.0,1.36786542]
[1732549056393,0.88708,95801.0,95800.0,1.26391342]
[1732549056755,0.88708,95801.0,95800.0,1.01129742]
[1732549057021,0.88708,95801.0,95800.0,0.55374847]
[1732549057208,0.88708,95801.0,95800.0,0.49459368]
[1732549057406,0.88608,95801.0,95800.0,0.17344165]
[1732549057701,0.88608,95801.0,95743.0,0.28]
[1732549057702,0.052209,95753.0,95746.0,0.052213]
[1732549057904,0.26008002,95753.0,95751.0,0.05221]
[1732549058209,0.10329339,95753.0,95751.0,0.05221]
[1732549059104,0.00112002,95753.0,95751.0,0.05921]
[1732549059308,0.25996,95755.0,95754.0,0.052209]
[1732549059695,0.4388,95757.0,95756.0,0.052208]
[1732549060074,0.3608,95764.0,95763.0,0.052204]
[1732549060415,0.26,95768.0,95751.0,0.007]
[1732549060417,0.26,95772.0,95752.0,0.3608]
[1732549060705,0.26,95772.0,95771.0,0.052199]
[1732549061905,0.43884,95782.0,95771.0,0.052199]
[1732549061906,0.26,95777.0,95771.0,0.052199]
[1732549062102,0.26,95777.0,95776.0,0.052197]
[1732549063413,0.052198,95775.0,95772.0,0.2881]
[1732549064002,0.052198,95775.0,95772.0,0.340299]
[1732549064208,0.261,95777.0,95773.0,0.052198]
[1732549064407,0.261,95777.0,95772.0,0.2881]
[1732549064408,0.261,95777.0,95775.0,0.052197]
[1732549065107,0.261,95777.0,95772.0,0.2971]
[1732549065108,0.26,95777.0,95772.0,0.2971]
[1732549065296,0.3608,95773.0,95772.0,0.2971]
[1732549065706,0.3608,95773.0,95772.0,0.009]
[1732549065908,0.3608,95773.0,95747.0,0.052212]
[1732549066219,0.3608,95765.0,95746.0,0.01618888]
[1732549066405,0.3608,95747.0,95745.0,0.2888]
[1732549066622,0.3608,95757.0,95745.0,0.341013]
[1732549066623,0.6208,95757.0,95745.0,0.341013]
[1732549067205,0.052212,95749.0,95745.0,0.2888]
[1732549067516,0.001,95747.0,95745.0,0.2978]
[1732549067709,0.001,95747.0,95746.0,0.052213]
[1732549068302,0.26,95752.0,95751.0,0.05221]
[1732549068612,0.001,95749.0,95745.0,0.3028]
[1732549068815,0.001,95749.0,95748.0,0.052212]
[1732549069523,0.3608,95757.0,95745.0,0.2978]
[1732549069906,0.3608,95757.0,95755.0,0.052208]
[1732549070339,0.15706785,95761.0,95759.0,0.052206]
[1732549070508,0.26004,95761.0,95759.0,0.052206]
[1732549070887,0.052207,95758.0,95752.0,0.3608]
[1732549071021,0.2534,95768.0,95761.0,0.052205]
[1732549071210,0.2534,95768.0,95765.0,0.052203]
[1732549071211,0.305602,95768.0,95765.0,0.052203]
[1732549071509,0.052202,95767.0,95765.0,0.052203]
[1732549071718,0.2534,95768.0,95766.0,0.052202]
[1732549072106,0.36136001,95780.0,95774.0,0.052198]
[1732549072328,0.25344,95783.0,95768.0,0.3608]
[1732549072504,0.25344,95783.0,95769.0,0.2778]
[1732549072708,0.052196,95778.0,95774.0,0.052198]
[1732549072909,0.052196,95778.0,95769.0,0.2778]
[1732549073105,0.052198,95774.0,95773.0,0.052198]
[1732549073318,0.15706785,95780.0,95769.0,0.2778]
[1732549073504,0.3608,95777.0,95768.0,0.36196]
[1732549073709,0.3608,95777.0,95768.0,0.3608]
[1732549074090,0.0522,95771.0,95769.0,0.0522]
[1732549074221,0.3608,95777.0,95763.0,0.24955888]
[1732549074301,0.3608,95777.0,95770.0,0.0522]
[1732549074302,0.0522,95771.0,95770.0,0.0522]
[1732549074707,0.052202,95767.0,95763.0,0.052203]
[1732549074916,0.3608,95774.0,95760.0,0.31848789]
[1732549075113,0.3608,95774.0,95761.0,0.052205]
[1732549075411,0.3608,95774.0,95762.0,0.24955888]
[1732549075713,0.001,95771.0,95768.0,0.005]
[1732549075916,0.0542,95771.0,95769.0,0.052201]
[1732549076519,0.002,95771.0,95769.0,0.052201]
[1732549076720,0.001,95771.0,95769.0,0.30175988]
[1732549077022,0.001,95771.0,95769.0,0.052201]
[1732549077234,0.002,95771.0,95770.0,0.24955888]
[1732549077412,0.002,95771.0,95769.0,0.057201]
[1732549077666,0.003,95771.0,95770.0,0.00326588]
[1732549078117,0.003,95771.0,95769.0,0.005]
[1732549078420,0.36544,95770.0,95769.0,0.005]
[1732549079012,0.05221,95751.0,95750.0,0.24967669]
[1732549079214,0.052213,95746.0,95745.0,0.60208466]
[1732549079408,0.052213,95746.0,95745.0,1.08195274]
[1732549079711,0.052213,95746.0,95745.0,1.08195091]
[1732549080018,0.052213,95746.0,95745.0,0.2888]
[1732549080231,0.2534,95751.0,95750.0,0.052211]
[1732549080414,0.2544,95751.0,95750.0,0.057211]
[1732549080613,0.001,95751.0,95750.0,0.731331]
[1732549080902,0.25344,95769.0,95756.0,0.052207]
[1732549081095,0.25344,95769.0,95750.0,1.15670633]
[1732549081096,0.3608,95764.0,95759.0,0.24982471]
[1732549081266,0.3608,95764.0,95750.0,0.00616]
[1732549081267,0.05221,95751.0,95750.0,0.00616]
[1732549081420,0.30565,95751.0,95750.0,0.00942679]
[1732549081811,0.30565,95751.0,95750.0,0.00826679]
[1732549082014,0.25344,95751.0,95750.0,0.005]
[1732549082209,0.02090778,95771.0,95750.0,0.005]
[1732549082210,0.02090778,95771.0,95751.0,0.31332]
[1732549082412,0.15706785,95770.0,95756.0,0.3608]
[1732549082715,0.15706785,95770.0,95749.0,0.37011983]
[1732549082716,0.052207,95758.0,95757.0,0.00326685]
[1732549082913,0.052207,95758.0,95757.0,0.00326669]
[1732549083221,0.25344,95763.0,95761.0,0.052205]
[1732549083819,0.005,95770.0,95769.0,0.052201]
[1732549084012,0.005,95770.0,95769.0,0.413001]
[1732549084117,0.25344,95776.0,95775.0,0.052197]
[1732549084426,0.25344,95776.0,95775.0,0.5296911]
[1732549084614,0.25344,95776.0,95775.0,0.37323537]
[1732549084816,0.25344,95788.0,95787.0,0.052191]
[1732549085013,0.00156681,95793.0,95791.0,0.052188]
[1732549085626,0.305617,95813.0,95810.0,0.052178]
[1732549085817,0.3608,95825.0,95813.0,0.052177]
[1732549085818,0.01638869,95815.0,95813.0,0.052177]
[1732549086329,0.052179,95810.0,95798.0,0.31238528]
[1732549086538,0.01638869,95815.0,95799.0,0.00326494]
[1732549086723,0.001,95813.0,95811.0,0.052177]
[1732549087121,0.001,95813.0,95810.0,0.003]
[1732549087122,0.052178,95811.0,95810.0,0.003]
[1732549087469,0.001,95813.0,95792.0,0.698288]
[1732549087470,0.001,95813.0,95811.0,0.052178]
[1732549087730,0.002,95810.0,95806.0,0.05218]
[1732549087938,0.002,95810.0,95798.0,0.017]
[1732549088230,0.002,95810.0,95808.0,0.052179]
[1732549089024,0.001,95810.0,95808.0,0.052179]
[1732549089220,0.001,95810.0,95798.0,0.009]
[1732549089424,0.052184,95799.0,95798.0,0.009]
[1732549089731,0.052184,95799.0,95767.0,0.37011983]
[1732549089732,0.052186,95796.0,95764.0,0.01544797]
[1732549089928,0.15706785,95780.0,95769.0,0.052201]
[1732549090115,0.0522,95771.0,95769.0,0.052201]
[1732549090314,0.25336,95779.0,95753.0,0.2661]
[1732549090315,0.25336,95779.0,95772.0,0.052199]
[1732549090628,0.25336,95779.0,95760.0,0.413005]
[1732549090941,0.25336,95779.0,95753.0,0.2661]
[1732549090942,0.3608,95768.0,95753.0,0.2661]
[1732549091146,0.052209,95755.0,95753.0,0.2661]
[1732549091376,0.052209,95755.0,95740.0,7.925e-05]
[1732549091377,0.052212,95749.0,95747.0,0.052212]
[1732549091622,0.3608,95750.0,95740.0,7.925e-05]
[1732549091827,0.052214,95744.0,95741.0,0.052216]
[1732549092023,0.15706785,95751.0,95743.0,0.052215]
[1732549092224,0.052214,95745.0,95743.0,0.052215]
[1732549092534,0.052214,95745.0,95740.0,7.925e-05]
[1732549092535,0.052216,95741.0,95740.0,7.925e-05]
[1732549093238,0.052214,95746.0,95740.0,7.925e-05]
[1732549093430,0.052214,95746.0,95743.0,0.007]
[1732549093922,0.052214,95744.0,95743.0,0.003]
[1732549094219,0.26939937,95754.0,95740.0,0.00407925]
[1732549094220,0.053216,95741.0,95740.0,0.00707925]
[1732549095328,0.053216,95741.0,95716.0,0.3608]
[1732549095518,0.052229,95718.0,95716.0,0.3608]
[1732549096532,9.888e-05,95717.0,95716.0,0.3638]
[1732549097758,9.888e-05,95717.0,95716.0,0.3648]
[1732549098124,0.00109888,95717.0,95716.0,0.004]
[1732549099138,0.00209888,95717.0,95716.0,0.001]
[1732549100226,0.25557888,95717.0,95716.0,0.001]
[1732549101827,0.25557888,95717.0,95716.0,0.3618]
[1732549102126,0.25557888,95717.0,95716.0,0.001]
[1732549102644,0.25557888,95717.0,95716.0,0.3618]
[1732549103226,0.25525888,95717.0,95716.0,0.3618]
[1732549104752,0.25525888,95717.0,95716.0,0.001]
[1732549104932,0.25525888,95717.0,95716.0,0.3618]
[1732549104933,0.00209888,95717.0,95716.0,0.3618]
[1732549105127,0.05222,95734.0,95717.0,0.052229]
[1732549105426,0.2532,95734.0,95724.0,0.3608]
[1732549105628,0.2532,95734.0,95732.0,0.052221]
[1732549105833,0.2532,95734.0,95719.0,0.3608]
[1732549106029,0.052225,95725.0,95721.0,0.052227]
[1732549106336,0.052225,95725.0,95719.0,0.3608]
[1732549106521,0.052225,95724.0,95721.0,0.052227]
[1732549106735,0.2532,95734.0,95719.0,0.3608]
[1732549106923,0.2532,95734.0,95716.0,0.01651166]
[1732549106924,0.2532,95734.0,95730.0,0.3608]
[1732549107241,0.43908,95744.0,95730.0,0.413022]
[1732549107242,0.001,95731.0,95730.0,0.413022]
[1732549107536,0.002,95731.0,95730.0,0.413022]
[1732549108111,0.43908,95744.0,95737.0,0.052218]
[1732549108336,0.05378563,95738.0,95730.0,0.3608]
[1732549108527,0.00156763,95738.0,95730.0,0.37634471]
[1732549108725,0.052223,95729.0,95727.0,0.3608]
[1732549109344,0.005,95734.0,95727.0,0.3608]
[1732549109536,0.05378563,95738.0,95732.0,0.052221]
[1732549109724,0.00656763,95738.0,95727.0,0.3608]
[1732549109922,0.00656763,95738.0,95737.0,0.052218]
[1732549110331,0.00156763,95738.0,95737.0,0.052218]
[1732549110932,0.2532,95745.0,95744.0,0.052214]
[1732549112147,0.2532,95745.0,95744.0,0.413014]
[1732549112345,0.43908,95772.0,95744.0,0.3608]
[1732549112638,0.43908,95772.0,95744.0,0.413014]
[1732549112639,0.009,95745.0,95744.0,0.413014]
[1732549112829,0.052205,95761.0,95757.0,0.052207]
[1732549113030,0.052207,95759.0,95744.0,0.3608]
[1732549113262,0.2532,95765.0,95759.0,0.052206]
[1732549113533,0.2532,95765.0,95753.0,0.3608]
[1732549113773,0.052206,95760.0,95757.0,0.052207]
[1732549114032,0.052208,95756.0,95749.0,0.052211]
[1732549114234,0.15706785,95760.0,95747.0,0.052213]
[1732549114426,0.2532,95765.0,95744.0,0.3608]
[1732549114427,0.052205,95762.0,95759.0,0.052206]
[1732549114632,0.052205,95762.0,95756.0,0.052208]
[1732549115026,0.2532,95765.0,95756.0,0.052208]
[1732549115027,0.052206,95760.0,95756.0,0.052208]
[1732549115237,0.052206,95759.0,95749.0,0.052211]
[1732549115438,0.052207,95758.0,95750.0,0.052211]
[1732549115624,0.2532,95765.0,95754.0,0.3608]
[1732549115938,0.2582,95765.0,95750.0,0.052211]
[1732549116140,0.2582,95765.0,95744.0,0.37676966]
[1732549116141,0.05221,95751.0,95744.0,0.37676966]
[1732549116333,0.15706785,95760.0,95744.0,0.37676966]
[1732549116550,0.052212,95749.0,95744.0,0.37676966]
[1732549116727,0.005,95758.0,95744.0,0.37676966]
[1732549116937,0.052212,95748.0,95744.0,0.37676966]
[1732549117134,0.052212,95748.0,95744.0,0.42898366]
[1732549117331,0.052213,95746.0,95744.0,0.37676966]
[1732549117530,0.052213,95746.0,95744.0,0.3618]
[1732549117730,0.052213,95746.0,95744.0,0.001]
[1732549118737,0.25316,95749.0,95744.0,0.001]
[1732549118958,0.25316,95750.0,95744.0,0.001]
[1732549119139,0.25316,95750.0,95749.0,0.413012]
[1732549119434,0.25316,95761.0,95749.0,0.31332]
[1732549119646,0.25316,95761.0,95745.0,0.3608]
[1732549119647,0.008,95748.0,95746.0,0.052213]
[1732549119826,0.005,95749.0,95746.0,0.31332]
[1732549120038,0.25316,95761.0,95754.0,0.052208]
[1732549120039,0.052206,95760.0,95754.0,0.052208]
[1732549120228,0.25316,95761.0,95754.0,0.052208]
[1732549120433,0.052207,95758.0,95757.0,0.052206]
[1732549121139,0.25816,95761.0,95745.0,0.3608]
[1732549121330,0.25816,95761.0,95760.0,0.052206]
[1732549121331,0.005,95761.0,95760.0,0.052206]
[1732549121566,0.052187,95795.0,95754.0,0.3608]
[1732549121567,0.25316,95793.0,95755.0,0.413008]
[1732549121839,0.052188,95793.0,95792.0,0.052188]
[1732549122346,0.052188,95793.0,95779.0,0.3608]
[1732549122347,0.052191,95787.0,95786.0,0.052191]
[1732549122510,0.25316,95798.0,95779.0,0.3608]
[1732549122739,0.05219,95789.0,95785.0,0.052192]
[1732549122936,0.25316,95798.0,95779.0,0.3608]
[1732549123130,0.25316,95798.0,95794.0,0.052187]
[1732549123335,0.25316,95798.0,95780.0,0.2722]
[1732549123336,0.003,95793.0,95780.0,0.2722]
[1732549123531,0.003,95793.0,95780.0,0.28770648]
[1732549123730,0.003,95793.0,95792.0,0.052188]
[1732549123931,0.003,95793.0,95780.0,0.28770648]
[1732549123932,0.052185,95797.0,95780.0,0.28770648]
[1732549124137,0.052185,95797.0,95795.0,0.052186]
[1732549124444,0.306345,95798.0,95797.0,0.052185]
[1732549124638,0.25416,95798.0,95797.0,0.052185]
[1732549125153,0.001,95798.0,95797.0,0.052185]
[1732549125647,0.3608,95805.0,95792.0,0.009]
[1732549125843,0.052188,95793.0,95792.0,0.009]
[1732549126433,0.25308,95793.0,95782.0,0.0681557]
[1732549126643,0.25308,95793.0,95780.0,0.009]
[1732549127248,0.25308,95793.0,95777.0,0.3608]
[1732549127442,0.05219,95788.0,95784.0,0.052192]
[1732549127638,0.25308,95793.0,95787.0,0.3608]
[1732549127836,0.052184,95800.0,95798.0,0.052185]
[1732549128044,0.3608,95805.0,95791.0,0.052189]
[1732549128246,0.3608,95805.0,95780.0,0.009]
[1732549128247,0.052188,95793.0,95780.0,0.009]
[1732549128492,0.37649214,95805.0,95780.0,0.009]
[1732549128648,0.052187,95795.0,95788.0,0.05219]
[1732549128836,0.001,95793.0,95788.0,0.05219]
[1732549129049,0.001,95793.0,95780.0,0.018]
[1732549129233,0.001,95793.0,95781.0,0.052194]
[1732549129441,0.001,95793.0,95780.0,0.018]
[1732549129642,0.052186,95797.0,95791.0,0.052188]
[1732549129838,0.052186,95797.0,95780.0,0.17506785]
[1732549130039,0.052186,95797.0,95780.0,0.018]
[1732549130347,0.052186,95796.0,95780.0,0.009]
[1732549130649,0.001,95793.0,95792.0,0.052188]
[1732549131798,0.25248,95819.0,95792.0,0.365348]
[1732549131935,0.02246979,95827.0,95822.0,0.052172]
[1732549131936,0.052171,95824.0,95822.0,0.052172]
[1732549132141,0.02246979,95827.0,95810.0,0.3608]
[1732549132142,0.052174,95818.0,95810.0,0.3608]
[1732549132341,0.02246979,95827.0,95810.0,0.3608]
[1732549132544,0.00156626,95827.0,95826.0,0.05217]
[1732549132953,0.02090353,95843.0,95818.0,0.3608]
[1732549133145,0.412964,95836.0,95834.0,0.052165]
[1732549133376,0.3608,95836.0,95834.0,0.052165]
[1732549133541,0.3608,95836.0,95824.0,0.05217]
[1732549133542,0.052156,95851.0,95835.0,0.3608]
[1732549133742,0.01538996,95859.0,95846.0,0.3608]
[1732549133946,0.25248,95860.0,95855.0,0.412954]
[1732549134243,0.25248,95860.0,95849.0,0.052157]
[1732549134244,0.26798318,95860.0,95849.0,0.052157]
[1732549134465,0.3608,95857.0,95832.0,0.3608]
[1732549134700,0.3608,95857.0,95846.0,0.052158]
[1732549134701,0.001,95851.0,95846.0,0.052158]
[1732549134853,0.001,95851.0,95843.0,0.3608]
[1732549134854,0.001,95851.0,95849.0,0.052157]
[1732549135330,0.25248,95860.0,95855.0,0.052154]
[1732549135438,0.00256583,95856.0,95855.0,0.053154]
[1732549136644,0.00256583,95856.0,95855.0,0.001]
[1732549136645,0.00556583,95856.0,95855.0,0.001]
[1732549136844,0.00456583,95856.0,95852.0,0.3608]
[1732549137044,0.052155,95853.0,95852.0,0.3608]
[1732549137244,0.052155,95853.0,95849.0,0.001]
[1732549137245,0.052157,95850.0,95849.0,0.001]
[1732549137650,0.052157,95850.0,95826.0,0.3608]
[1732549137651,0.052157,95850.0,95838.0,0.01554338]
[1732549137844,0.02051167,95856.0,95842.0,0.3608]
[1732549138044,0.00456583,95856.0,95842.0,0.3608]
[1732549138259,0.00456583,95856.0,95854.0,0.052154]
[1732549138658,0.25248,95860.0,95859.0,0.052152]
[1732549138844,0.25248,95860.0,95849.0,0.001]
[1732549139054,0.052156,95851.0,95849.0,0.001]
[1732549139846,0.052163,95838.0,95837.0,0.0158405]
[1732549140041,0.052165,95836.0,95834.0,0.3608]
[1732549140365,0.052165,95835.0,95834.0,0.3608]
[1732549140947,0.25236,95836.0,95835.0,0.052165]
[1732549141354,0.304524,95836.0,95834.0,0.3698]
[1732549141601,0.67384,95835.0,95801.0,0.18640069]
[1732549141854,0.67384,95835.0,95805.0,0.01610776]
[1732549141855,0.412975,95816.0,95805.0,0.01610776]
[1732549142062,0.67067127,95816.0,95805.0,0.01610776]
[1732549142250,0.98379127,95816.0,95790.0,0.2857]
[1732549142955,0.98579127,95816.0,95795.0,0.052186]
[1732549143146,0.98579127,95816.0,95790.0,0.30172623]
[1732549143347,0.98579127,95816.0,95791.0,0.052188]
[1732549143546,0.98579127,95816.0,95790.0,0.30172623]
[1732549144154,0.68844756,95816.0,95792.0,0.052188]
[1732549144464,0.68844756,95816.0,95815.0,0.00108319]
[1732549144465,1.00956756,95816.0,95815.0,0.00108319]
[1732549145150,0.69115129,95816.0,95815.0,0.00108319]
[1732549145350,0.43875129,95816.0,95815.0,0.00108319]
[1732549145553,0.063175,95816.0,95815.0,0.00108319]
[1732549145953,0.011,95816.0,95815.0,0.00108319]
[1732549146755,0.003,95816.0,95815.0,8.319e-05]
[1732549146958,0.063175,95816.0,95815.0,0.00108319]
[1732549147161,0.423975,95816.0,95815.0,0.00108319]
[1732549147546,0.415975,95816.0,95815.0,8.319e-05]
[1732549147847,0.423975,95816.0,95815.0,0.00108319]
[1732549148151,0.052177,95814.0,95787.0,0.18591926]
[1732549148367,0.052177,95814.0,95784.0,0.052192]
[1732549148368,0.052188,95793.0,95784.0,0.052192]
[1732549148561,0.052193,95784.0,95781.0,0.2751]
[1732549148856,0.15706785,95794.0,95781.0,0.2751]
[1732549148857,0.052189,95791.0,95781.0,0.2751]
[1732549149068,0.052189,95791.0,95781.0,0.29012601]
[1732549149355,0.052192,95786.0,95781.0,0.47604527]
[1732549149556,8.319e-05,95790.0,95781.0,0.29012601]
[1732549149873,0.05227219,95790.0,95781.0,0.29912601]
[1732549150053,0.05227219,95790.0,95782.0,0.18591926]
[1732549150255,0.052191,95787.0,95781.0,0.30812601]
[1732549150613,0.052193,95783.0,95781.0,0.009]
[1732549150858,0.052193,95783.0,95781.0,0.018]
[1732549151743,0.36188319,95790.0,95781.0,0.070194]
[1732549152055,0.36188319,95790.0,95781.0,0.018]
[1732549152457,0.001,95787.0,95781.0,0.018]
[1732549152664,0.052192,95785.0,95781.0,0.018]
[1732549153065,0.052192,95785.0,95776.0,0.052197]
[1732549153272,0.36388319,95790.0,95766.0,0.45551926]
[1732549153273,0.052194,95783.0,95781.0,0.001]
[1732549153455,0.3608,95782.0,95781.0,0.001]
[1732549153768,0.674,95782.0,95781.0,0.001]
[1732549154358,0.674,95782.0,95762.0,0.3608]
[1732549154359,0.0522,95770.0,95762.0,0.3608]
[1732549154576,0.25244,95769.0,95762.0,0.3608]
[1732549154764,0.3608,95782.0,95768.0,0.052201]
[1732549155058,0.15706785,95780.0,95762.0,0.3608]
[1732549155272,0.052196,95777.0,95769.0,0.0522]
[1732549155456,0.15706785,95780.0,95762.0,0.3608]
[1732549155655,0.25244,95781.0,95769.0,0.0522]
[1732549155952,0.25244,95781.0,95762.0,0.3608]
[1732549156154,0.012,95782.0,95781.0,0.001]
[1732549156381,8.319e-05,95790.0,95789.0,0.05219]
[1732549156562,8.319e-05,95790.0,95789.0,0.41299]
[1732549157568,8.319e-05,95790.0,95789.0,0.05219]
[1732549157755,8.319e-05,95790.0,95789.0,0.01488511]
[1732549157957,0.05219,95789.0,95782.0,0.2904]
[1732549158253,8.319e-05,95790.0,95783.0,0.052193]
[1732549158466,8.319e-05,95790.0,95787.0,0.052191]
[1732549158665,0.00208319,95790.0,95787.0,0.052191]
[1732549158857,0.00208319,95790.0,95789.0,0.05219]
[1732549159258,8.319e-05,95790.0,95782.0,0.30543404]
[1732549159465,0.00208319,95790.0,95788.0,0.05219]
[1732549159860,0.00308319,95790.0,95789.0,0.3698]
[1732549160060,0.00108319,95790.0,95789.0,0.3698]
[1732549160463,0.00156664,95806.0,95789.0,0.3698]
[1732549160662,0.00156664,95806.0,95789.0,0.41299]
[1732549160663,0.001,95790.0,95789.0,0.41299]
[1732549161499,0.25404664,95806.0,95789.0,0.3608]
[1732549161722,0.001,95790.0,95789.0,0.42199]
[1732549161864,0.001,95790.0,95789.0,0.43099]
[1732549162063,0.001,95790.0,95789.0,0.07019]
[1732549162370,0.001,95790.0,95789.0,0.43099]
[1732549162556,0.00156664,95806.0,95789.0,0.692]
[1732549162761,0.00156664,95806.0,95789.0,0.3788]
[1732549162964,0.00156664,95806.0,95799.0,0.052184]
[1732549163278,0.00156664,95806.0,95805.0,0.052181]
[1732549163962,0.052182,95804.0,95800.0,0.63416]
[1732549164163,0.001,95801.0,95799.0,0.001]
[1732549165056,0.25172,95804.0,95797.0,0.3608]
[1732549165090,0.00256664,95806.0,95804.0,0.052181]
[1732549165261,0.25172,95805.0,95804.0,0.052181]
[1732549166765,0.25372,95805.0,95804.0,0.052181]
[1732549167374,0.002,95805.0,95804.0,0.052181]
[1732549167678,0.01,95805.0,95804.0,0.053181]
[1732549168473,0.01,95805.0,95804.0,0.01597908]
[1732549168667,0.01,95805.0,95785.0,0.60869235]
[1732549168668,0.052191,95787.0,95786.0,0.18591926]
[1732549168872,0.052191,95787.0,95776.0,0.3608]
[1732549168873,0.052193,95783.0,95776.0,0.3608]
[1732549169072,0.052196,95778.0,95776.0,0.3608]
[1732549170770,0.052199,95772.0,95765.0,0.06776349]
[1732549171087,0.052202,95768.0,95765.0,0.01556049]
[1732549171273,0.052202,95768.0,95763.0,0.316004]
[1732549171607,0.052204,95762.0,95761.0,0.3608]
[1732549171754,0.052204,95762.0,95752.0,0.3608]
[1732549171755,0.3608,95762.0,95752.0,0.3608]